Workbook

Sheet 202205
A1: ="Haja's 매 출 일 보" & "("&B4 & "월)" -> Haja's 매 출 일 보(5월)
A3: 연도 | B3: 2022 | C3: 일 | D3: 월 | E3: 화 | F3: 수 | G3: 목 | H3: 금 | I3: 토 | J3: 일 | K3: 월 | L3: 화 | M3: 수 | N3: 목 | O3: 금 | P3: 토 | Q3: 일 | R3: 월 | S3: 화 | T3: 수 | U3: 목 | V3: 금 | W3: 토 | X3: 일 | Y3: 월 | Z3: 화 | AA3: 수 | AB3: 목 | AC3: 금 | AD3: 토 | AE3: 일 | AF3: 월 | AG3: 화
A4: 월 | B4: 5 | C4: 2022-05-01 | D4: 2022-05-02 | E4: 2022-05-03 | F4: 2022-05-04 | G4: 2022-05-05 | H4: 2022-05-06 | I4: 2022-05-07 | J4: 2022-05-08 | K4: 2022-05-09 | L4: 2022-05-10 | M4: 2022-05-11 | N4: 2022-05-12 | O4: 2022-05-13 | P4: 2022-05-14 | Q4: 2022-05-15 | R4: 2022-05-16 | S4: 2022-05-17 | T4: 2022-05-18 | U4: 2022-05-19 | V4: 2022-05-20 | W4: 2022-05-21 | X4: 2022-05-22 | Y4: 2022-05-23 | Z4: 2022-05-24 | AA4: 2022-05-25 | AB4: 2022-05-26 | AC4: 2022-05-27 | AD4: 2022-05-28 | AE4: 2022-05-29 | AF4: 2022-05-30 | AG4: 2022-05-31
A5: 합계 | C5: =SUM(C6:C27) -> 1112 | D5: =SUM(D6:D27) -> 881 | E5: 1242 | F5: 1107 | G5: 897 | H5: 970 | I5: 1211 | J5: 1203 | K5: 1199 | L5: 1237 | M5: 1210 | N5: 1046 | O5: 1126 | P5: 1131 | Q5: 1172 | R5: 907 | S5: 913 | T5: 1261 | U5: 1313 | V5: 1111 | W5: 1128 | X5: 1027 | Y5: 1106 | Z5: 1130 | AA5: 1146 | AB5: 928 | AC5: 1168 | AD5: 1255 | AE5: 1003 | AF5: 1114 | AG5: 1266
A6: A팀 | B6: 판매량 : 1 | C6: 100 | D6: 31 | E6: 87 | F6: 21 | G6: 6 | H6: 64 | I6: 95 | J6: 98 | K6: 61 | L6: 57 | M6: 68 | N6: 36 | O6: 99 | P6: 60 | Q6: 23 | R6: 18 | S6: 51 | T6: 30 | U6: 92 | V6: 93 | W6: 97 | X6: 24 | Y6: 39 | Z6: 17 | AA6: 70 | AB6: 48 | AC6: 74 | AD6: 60 | AE6: 9 | AF6: 82 | AG6: 1
B7: 판매량 : 2 | C7: 85 | D7: 7 | E7: 28 | F7: 48 | G7: 40 | H7: 63 | I7: 67 | J7: 86 | K7: 72 | L7: 78 | M7: 59 | N7: 63 | O7: 87 | P7: 64 | Q7: 38 | R7: 51 | S7: 81 | T7: 38 | U7: 32 | V7: 4 | W7: 32 | X7: 99 | Y7: 68 | Z7: 60 | AA7: 67 | AB7: 97 | AC7: 16 | AD7: 3 | AE7: 86 | AF7: 13 | AG7: 97
B8: 판매량 : 3 | C8: 11 | D8: 1 | E8: 95 | F8: 60 | G8: 32 | H8: 48 | I8: 51 | J8: 21 | K8: 9 | L8: 86 | M8: 27 | N8: 43 | O8: 100 | P8: 57 | Q8: 38 | R8: 76 | S8: 18 | T8: 18 | U8: 12 | V8: 24 | W8: 26 | X8: 22 | Y8: 95 | Z8: 27 | AA8: 24 | AB8: 9 | AC8: 69 | AD8: 14 | AE8: 47 | AF8: 55 | AG8: 68
B9: 판매량 : 4 | C9: 9 | D9: 47 | E9: 62 | F9: 71 | G9: 56 | H9: 32 | I9: 86 | J9: 55 | K9: 100 | L9: 12 | M9: 52 | N9: 91 | O9: 94 | P9: 23 | Q9: 70 | R9: 62 | S9: 34 | T9: 87 | U9: 67 | V9: 11 | W9: 82 | X9: 41 | Y9: 44 | Z9: 79 | AA9: 1 | AB9: 95 | AC9: 10 | AD9: 72 | AE9: 16 | AF9: 69 | AG9: 80
B10: 판매량 : 5 | C10: 47 | D10: 47 | E10: 78 | F10: 47 | G10: 91 | H10: 49 | I10: 9 | J10: 40 | K10: 30 | L10: 30 | M10: 65 | N10: 12 | O10: 16 | P10: 16 | Q10: 51 | R10: 18 | S10: 14 | T10: 52 | U10: 83 | V10: 77 | W10: 15 | X10: 41 | Y10: 5 | Z10: 60 | AA10: 87 | AB10: 14 | AC10: 63 | AD10: 82 | AE10: 99 | AF10: 83 | AG10: 36
B11: 판매량 : 6 | C11: 78 | D11: 71 | E11: 36 | F11: 33 | G11: 66 | H11: 93 | I11: 72 | J11: 94 | K11: 16 | L11: 86 | M11: 89 | N11: 27 | O11: 8 | P11: 67 | Q11: 67 | R11: 23 | S11: 47 | T11: 38 | U11: 77 | V11: 48 | W11: 32 | X11: 85 | Y11: 93 | Z11: 84 | AA11: 49 | AB11: 18 | AC11: 47 | AD11: 72 | AE11: 69 | AF11: 34 | AG11: 81
B12: 판매량 : 7 | C12: 70 | D12: 86 | E12: 100 | F12: 7 | G12: 13 | H12: 30 | I12: 47 | J12: 6 | K12: 65 | L12: 67 | M12: 60 | N12: 44 | O12: 68 | P12: 53 | Q12: 34 | R12: 27 | S12: 49 | T12: 69 | U12: 58 | V12: 8 | W12: 45 | X12: 46 | Y12: 69 | Z12: 52 | AA12: 38 | AB12: 81 | AC12: 98 | AD12: 48 | AE12: 84 | AF12: 57 | AG12: 25
B13: 판매량 : 8 | C13: 84 | D13: 61 | E13: 83 | F13: 98 | G13: 38 | H13: 36 | I13: 5 | J13: 13 | K13: 67 | L13: 39 | M13: 45 | N13: 32 | O13: 36 | P13: 69 | Q13: 18 | R13: 14 | S13: 16 | T13: 64 | U13: 51 | V13: 76 | W13: 35 | X13: 4 | Y13: 85 | Z13: 34 | AA13: 77 | AB13: 25 | AC13: 70 | AD13: 77 | AE13: 2 | AF13: 41 | AG13: 58
B14: 판매량 : 9 | C14: 11 | D14: 53 | E14: 18 | F14: 89 | G14: 55 | H14: 13 | I14: 81 | J14: 87 | K14: 30 | L14: 6 | M14: 5 | N14: 58 | O14: 39 | P14: 75 | Q14: 70 | R14: 19 | S14: 46 | T14: 94 | U14: 87 | V14: 68 | W14: 85 | X14: 77 | Y14: 36 | Z14: 90 | AA14: 12 | AB14: 1 | AC14: 97 | AD14: 96 | AE14: 13 | AF14: 84 | AG14: 61
B15: 판매량 : 10 | C15: 30 | D15: 36 | E15: 83 | F15: 29 | G15: 97 | H15: 80 | I15: 17 | J15: 45 | K15: 26 | L15: 19 | M15: 83 | N15: 58 | O15: 64 | P15: 69 | Q15: 57 | R15: 73 | S15: 11 | T15: 57 | U15: 89 | V15: 100 | W15: 98 | X15: 68 | Y15: 37 | Z15: 50 | AA15: 10 | AB15: 27 | AC15: 49 | AD15: 51 | AE15: 95 | AF15: 21 | AG15: 58
B16: 판매량 : 11 | C16: 38 | D16: 18 | E16: 62 | F16: 27 | G16: 10 | H16: 27 | I16: 98 | J16: 41 | K16: 26 | L16: 69 | M16: 91 | N16: 45 | O16: 92 | P16: 51 | Q16: 45 | R16: 41 | S16: 12 | T16: 66 | U16: 19 | V16: 65 | W16: 81 | X16: 20 | Y16: 87 | Z16: 12 | AA16: 30 | AB16: 7 | AC16: 20 | AD16: 85 | AE16: 36 | AF16: 6 | AG16: 79
A17: B팀 | B17: 판매량 : 1 | C17: 30 | D17: 5 | E17: 45 | F17: 65 | G17: 4 | H17: 36 | I17: 93 | J17: 48 | K17: 93 | L17: 47 | M17: 37 | N17: 34 | O17: 3 | P17: 9 | Q17: 55 | R17: 2 | S17: 20 | T17: 29 | U17: 97 | V17: 47 | W17: 19 | X17: 50 | Y17: 13 | Z17: 82 | AA17: 35 | AB17: 7 | AC17: 69 | AD17: 23 | AE17: 14 | AF17: 65 | AG17: 58
B18: 판매량 : 2 | C18: 30 | D18: 32 | E18: 66 | F18: 8 | G18: 17 | H18: 2 | I18: 56 | J18: 14 | K18: 49 | L18: 12 | M18: 69 | N18: 15 | O18: 98 | P18: 79 | Q18: 77 | R18: 2 | S18: 34 | T18: 66 | U18: 36 | V18: 42 | W18: 63 | X18: 93 | Y18: 52 | Z18: 62 | AA18: 61 | AB18: 68 | AC18: 40 | AD18: 73 | AE18: 24 | AF18: 1 | AG18: 21
B19: 판매량 : 3 | C19: 35 | D19: 59 | E19: 55 | F19: 88 | G19: 33 | H19: 55 | I19: 82 | J19: 91 | K19: 87 | L19: 60 | M19: 73 | N19: 46 | O19: 30 | P19: 34 | Q19: 9 | R19: 79 | S19: 90 | T19: 66 | U19: 74 | V19: 37 | W19: 21 | X19: 13 | Y19: 99 | Z19: 5 | AA19: 89 | AB19: 23 | AC19: 12 | AD19: 45 | AE19: 71 | AF19: 98 | AG19: 29
B20: 판매량 : 4 | C20: 53 | D20: 14 | E20: 15 | F20: 57 | G20: 67 | H20: 89 | I20: 20 | J20: 61 | K20: 72 | L20: 22 | M20: 50 | N20: 54 | O20: 57 | P20: 42 | Q20: 52 | R20: 53 | S20: 34 | T20: 44 | U20: 67 | V20: 27 | W20: 32 | X20: 41 | Y20: 11 | Z20: 28 | AA20: 42 | AB20: 82 | AC20: 29 | AD20: 75 | AE20: 90 | AF20: 16 | AG20: 78
B21: 판매량 : 5 | C21: 50 | D21: 28 | E21: 66 | F21: 37 | G21: 67 | H21: 44 | I21: 36 | J21: 23 | K21: 45 | L21: 100 | M21: 5 | N21: 52 | O21: 45 | P21: 33 | Q21: 92 | R21: 76 | S21: 70 | T21: 100 | U21: 25 | V21: 32 | W21: 82 | X21: 48 | Y21: 9 | Z21: 81 | AA21: 72 | AB21: 26 | AC21: 10 | AD21: 99 | AE21: 42 | AF21: 73 | AG21: 71
A22: C팀 | B22: 판매량 : 1 | C22: 90 | D22: 23 | E22: 77 | F22: 62 | G22: 31 | H22: 85 | I22: 72 | J22: 74 | K22: 55 | L22: 48 | M22: 73 | N22: 43 | O22: 14 | P22: 19 | Q22: 8 | R22: 11 | S22: 33 | T22: 43 | U22: 92 | V22: 98 | W22: 98 | X22: 98 | Y22: 95 | Z22: 75 | AA22: 13 | AB22: 68 | AC22: 91 | AD22: 80 | AE22: 5 | AF22: 30 | AG22: 52
B23: 판매량 : 2 | C23: 82 | D23: 9 | E23: 13 | F23: 2 | G23: 42 | H23: 16 | I23: 76 | J23: 48 | K23: 77 | L23: 89 | M23: 41 | N23: 39 | O23: 24 | P23: 23 | Q23: 100 | R23: 42 | S23: 51 | T23: 49 | U23: 60 | V23: 31 | W23: 19 | X23: 78 | Y23: 15 | Z23: 3 | AA23: 93 | AB23: 34 | AC23: 49 | AD23: 35 | AE23: 26 | AF23: 56 | AG23: 15
B24: 판매량 : 3 | C24: 31 | D24: 47 | E24: 61 | F24: 51 | G24: 54 | H24: 14 | I24: 82 | J24: 91 | K24: 66 | L24: 87 | M24: 2 | N24: 74 | O24: 55 | P24: 90 | Q24: 62 | R24: 64 | S24: 60 | T24: 79 | U24: 38 | V24: 93 | W24: 58 | X24: 2 | Y24: 18 | Z24: 5 | AA24: 96 | AB24: 1 | AC24: 78 | AD24: 12 | AE24: 80 | AF24: 53 | AG24: 99
B25: 판매량 : 4 | C25: 24 | D25: 94 | E25: 14 | F25: 29 | G25: 17 | H25: 53 | I25: 1 | J25: 13 | K25: 9 | L25: 69 | M25: 93 | N25: 53 | O25: 39 | P25: 65 | Q25: 94 | R25: 46 | S25: 32 | T25: 36 | U25: 62 | V25: 60 | W25: 19 | X25: 21 | Y25: 71 | Z25: 99 | AA25: 36 | AB25: 64 | AC25: 51 | AD25: 50 | AE25: 15 | AF25: 72 | AG25: 46
B26: 판매량 : 5 | C26: 84 | D26: 67 | E26: 20 | F26: 91 | G26: 51 | H26: 3 | I26: 4 | J26: 68 | K26: 69 | L26: 75 | M26: 82 | N26: 75 | O26: 39 | P26: 37 | Q26: 54 | R26: 24 | S26: 80 | T26: 66 | U26: 5 | V26: 34 | W26: 10 | X26: 10 | Y26: 5 | Z26: 33 | AA26: 56 | AB26: 61 | AC26: 43 | AD26: 86 | AE26: 38 | AF26: 98 | AG26: 83
B27: 판매량 : 6 | C27: 40 | D27: 45 | E27: 78 | F27: 87 | G27: 10 | H27: 38 | I27: 61 | J27: 86 | K27: 75 | L27: 79 | M27: 41 | N27: 52 | O27: 19 | P27: 96 | Q27: 58 | R27: 86 | S27: 30 | T27: 70 | U27: 90 | V27: 36 | W27: 79 | X27: 46 | Y27: 60 | Z27: 92 | AA27: 88 | AB27: 72 | AC27: 83 | AD27: 17 | AE27: 42 | AF27: 7 | AG27: 70

Sheet 202204
A1: ="Haja's 매 출 일 보" & "("&B4 & "월)" -> Haja's 매 출 일 보(4월)
A3: 연도 | B3: 2022 | C3: 금 | D3: 토 | E3: 일 | F3: 월 | G3: 화 | H3: 수 | I3: 목 | J3: 금 | K3: 토 | L3: 일 | M3: 월 | N3: 화 | O3: 수 | P3: 목 | Q3: 금 | R3: 토 | S3: 일 | T3: 월 | U3: 화 | V3: 수 | W3: 목 | X3: 금 | Y3: 토 | Z3: 일 | AA3: 월 | AB3: 화 | AC3: 수 | AD3: 목 | AE3: 금 | AF3: 토
A4: 월 | B4: 4 | C4: 2022-04-01 | D4: 2022-04-02 | E4: 2022-04-03 | F4: 2022-04-04 | G4: 2022-04-05 | H4: 2022-04-06 | I4: 2022-04-07 | J4: 2022-04-08 | K4: 2022-04-09 | L4: 2022-04-10 | M4: 2022-04-11 | N4: 2022-04-12 | O4: 2022-04-13 | P4: 2022-04-14 | Q4: 2022-04-15 | R4: 2022-04-16 | S4: 2022-04-17 | T4: 2022-04-18 | U4: 2022-04-19 | V4: 2022-04-20 | W4: 2022-04-21 | X4: 2022-04-22 | Y4: 2022-04-23 | Z4: 2022-04-24 | AA4: 2022-04-25 | AB4: 2022-04-26 | AC4: 2022-04-27 | AD4: 2022-04-28 | AE4: 2022-04-29 | AF4: 2022-04-30
A5: 합계 | C5: =SUM(C6:C27) -> 1171 | D5: =SUM(D6:D27) -> 1058 | E5: 1270 | F5: 1157 | G5: 1143 | H5: 1022 | I5: 1098 | J5: 1147 | K5: 1032 | L5: 1152 | M5: 1067 | N5: 1124 | O5: 1157 | P5: 941 | Q5: 909 | R5: 1276 | S5: 999 | T5: 1234 | U5: 1202 | V5: 997 | W5: 1239 | X5: 1098 | Y5: 1044 | Z5: 1211 | AA5: 1050 | AB5: 1066 | AC5: 1035 | AD5: 1111 | AE5: 1057 | AF5: 1017
A6: A팀 | B6: 판매량 : 1 | C6: =RANDBETWEEN(1,100) -> 21 | D6: 11 | E6: 12 | F6: 36 | G6: 27 | H6: 77 | I6: 75 | J6: 9 | K6: 76 | L6: 81 | M6: 43 | N6: 10 | O6: 22 | P6: 9 | Q6: 37 | R6: 22 | S6: =RANDBETWEEN(1,100) -> 12 | T6: 36 | U6: 59 | V6: 50 | W6: 95 | X6: 64 | Y6: 79 | Z6: 14 | AA6: 26 | AB6: 64 | AC6: 79 | AD6: 24 | AE6: 52 | AF6: 24
B7: 판매량 : 2 | C7: 82 | D7: 3 | E7: 41 | F7: 6 | G7: 62 | H7: 44 | I7: 96 | J7: 90 | K7: 54 | L7: 77 | M7: 100 | N7: 41 | O7: 97 | P7: 96 | Q7: 3 | R7: 73 | S7: 48 | T7: 55 | U7: 13 | V7: 34 | W7: 86 | X7: 12 | Y7: 96 | Z7: 58 | AA7: 95 | AB7: 24 | AC7: 27 | AD7: 31 | AE7: 50 | AF7: 7
B8: 판매량 : 3 | C8: 43 | D8: 77 | E8: 88 | F8: 28 | G8: 76 | H8: 71 | I8: 85 | J8: 67 | K8: 93 | L8: 82 | M8: 6 | N8: 3 | O8: 10 | P8: 22 | Q8: 49 | R8: 91 | S8: 13 | T8: 77 | U8: 44 | V8: 21 | W8: 46 | X8: 53 | Y8: 76 | Z8: 75 | AA8: 96 | AB8: 51 | AC8: 56 | AD8: 32 | AE8: 13 | AF8: 53
B9: 판매량 : 4 | C9: 27 | D9: 8 | E9: 84 | F9: 25 | G9: 9 | H9: 6 | I9: 53 | J9: 7 | K9: 91 | L9: 51 | M9: 10 | N9: 67 | O9: 18 | P9: 11 | Q9: 10 | R9: 35 | S9: 94 | T9: 97 | U9: 92 | V9: 50 | W9: 50 | X9: 32 | Y9: 20 | Z9: 54 | AA9: 3 | AB9: 30 | AC9: 45 | AD9: 81 | AE9: 37 | AF9: 15
B10: 판매량 : 5 | C10: 91 | D10: 11 | E10: 66 | F10: 97 | G10: 35 | H10: 54 | I10: 85 | J10: 40 | K10: 35 | L10: 77 | M10: 46 | N10: 87 | O10: 81 | P10: 22 | Q10: 87 | R10: 91 | S10: 43 | T10: 7 | U10: 84 | V10: 12 | W10: 19 | X10: 19 | Y10: 35 | Z10: 23 | AA10: 6 | AB10: 6 | AC10: 36 | AD10: 75 | AE10: 8 | AF10: 13
B11: 판매량 : 6 | C11: 11 | D11: 24 | E11: 89 | F11: 60 | G11: 93 | H11: 19 | I11: 84 | J11: 97 | K11: 59 | L11: 82 | M11: 64 | N11: 81 | O11: 67 | P11: 53 | Q11: 97 | R11: 85 | S11: 84 | T11: 90 | U11: 36 | V11: 62 | W11: 27 | X11: 30 | Y11: 79 | Z11: 97 | AA11: 30 | AB11: 69 | AC11: 49 | AD11: 74 | AE11: 71 | AF11: 64
B12: 판매량 : 7 | C12: 44 | D12: 81 | E12: 68 | F12: 26 | G12: 61 | H12: 4 | I12: 20 | J12: 88 | K12: 16 | L12: 3 | M12: 3 | N12: 10 | O12: 96 | P12: 9 | Q12: 8 | R12: 71 | S12: 22 | T12: 13 | U12: 92 | V12: 97 | W12: 16 | X12: 88 | Y12: 29 | Z12: 98 | AA12: 40 | AB12: 14 | AC12: 36 | AD12: 92 | AE12: 85 | AF12: 56
B13: 판매량 : 8 | C13: 89 | D13: 36 | E13: 13 | F13: 88 | G13: 20 | H13: 46 | I13: 21 | J13: 78 | K13: 96 | L13: 41 | M13: 45 | N13: 90 | O13: 75 | P13: 11 | Q13: 3 | R13: 31 | S13: 50 | T13: 40 | U13: 43 | V13: 8 | W13: 96 | X13: 36 | Y13: 48 | Z13: 65 | AA13: 56 | AB13: 26 | AC13: 17 | AD13: 84 | AE13: 16 | AF13: 47
B14: 판매량 : 9 | C14: 86 | D14: 25 | E14: 79 | F14: 54 | G14: 74 | H14: 31 | I14: 10 | J14: 49 | K14: 8 | L14: 25 | M14: 7 | N14: 99 | O14: 53 | P14: 29 | Q14: 30 | R14: 21 | S14: 55 | T14: 21 | U14: 27 | V14: 48 | W14: 77 | X14: 8 | Y14: 64 | Z14: 76 | AA14: 48 | AB14: 30 | AC14: 75 | AD14: 56 | AE14: 97 | AF14: 100
B15: 판매량 : 10 | C15: 76 | D15: 74 | E15: 79 | F15: 40 | G15: 61 | H15: 78 | I15: 7 | J15: 67 | K15: 2 | L15: 9 | M15: 39 | N15: 76 | O15: 37 | P15: 77 | Q15: 37 | R15: 42 | S15: 51 | T15: 89 | U15: 12 | V15: 24 | W15: 94 | X15: 32 | Y15: 17 | Z15: 63 | AA15: 55 | AB15: 66 | AC15: 80 | AD15: 7 | AE15: 21 | AF15: 95
B16: 판매량 : 11 | C16: 12 | D16: 17 | E16: 28 | F16: 46 | G16: 100 | H16: 13 | I16: 10 | J16: 21 | K16: 60 | L16: 46 | M16: 32 | N16: 43 | O16: 50 | P16: 20 | Q16: 5 | R16: 51 | S16: 17 | T16: 23 | U16: 55 | V16: 79 | W16: 11 | X16: 43 | Y16: 33 | Z16: 57 | AA16: 75 | AB16: 38 | AC16: 62 | AD16: 6 | AE16: 74 | AF16: 24
A17: B팀 | B17: 판매량 : 1 | C17: 80 | D17: 70 | E17: 24 | F17: 92 | G17: 18 | H17: 13 | I17: 74 | J17: 55 | K17: 46 | L17: 76 | M17: 81 | N17: 87 | O17: 82 | P17: 63 | Q17: 22 | R17: 50 | S17: 26 | T17: 72 | U17: 46 | V17: 85 | W17: 32 | X17: 95 | Y17: 30 | Z17: 57 | AA17: 59 | AB17: 68 | AC17: 52 | AD17: 57 | AE17: 9 | AF17: 17
B18: 판매량 : 2 | C18: 53 | D18: 92 | E18: 95 | F18: 96 | G18: 34 | H18: 39 | I18: 85 | J18: 25 | K18: 51 | L18: 73 | M18: 85 | N18: 27 | O18: 17 | P18: 61 | Q18: 11 | R18: 64 | S18: 84 | T18: 95 | U18: 12 | V18: 73 | W18: 27 | X18: 98 | Y18: 83 | Z18: 74 | AA18: 12 | AB18: 56 | AC18: 57 | AD18: 88 | AE18: 73 | AF18: 34
B19: 판매량 : 3 | C19: 57 | D19: 93 | E19: 92 | F19: 83 | G19: 28 | H19: 20 | I19: 5 | J19: 27 | K19: 53 | L19: 6 | M19: 88 | N19: 25 | O19: 32 | P19: 38 | Q19: 71 | R19: 85 | S19: 52 | T19: 63 | U19: 66 | V19: 84 | W19: 4 | X19: 36 | Y19: 23 | Z19: 34 | AA19: 4 | AB19: 86 | AC19: 89 | AD19: 33 | AE19: 8 | AF19: 34
B20: 판매량 : 4 | C20: 13 | D20: 67 | E20: 30 | F20: 84 | G20: 98 | H20: 91 | I20: 30 | J20: 70 | K20: 31 | L20: 57 | M20: 15 | N20: 61 | O20: 70 | P20: 71 | Q20: 3 | R20: 35 | S20: 57 | T20: 11 | U20: 56 | V20: 36 | W20: 96 | X20: 7 | Y20: 3 | Z20: 25 | AA20: 46 | AB20: 3 | AC20: 72 | AD20: 6 | AE20: 25 | AF20: 53
B21: 판매량 : 5 | C21: 61 | D21: 42 | E21: 26 | F21: 4 | G21: 1 | H21: 15 | I21: 43 | J21: 44 | K21: 27 | L21: 56 | M21: 42 | N21: 46 | O21: 94 | P21: 78 | Q21: 38 | R21: =RANDBETWEEN(1,100) -> 22 | S21: 99 | T21: 90 | U21: 35 | V21: 21 | W21: 89 | X21: 37 | Y21: 11 | Z21: 63 | AA21: 71 | AB21: 95 | AC21: 11 | AD21: 66 | AE21: 88 | AF21: 42
A22: C팀 | B22: 판매량 : 1 | C22: =RANDBETWEEN(1,100) -> 94 | D22: 52 | E22: 25 | F22: 7 | G22: 46 | H22: 24 | I22: 54 | J22: 57 | K22: 33 | L22: 31 | M22: 33 | N22: 66 | O22: 31 | P22: 27 | Q22: 80 | R22: 42 | S22: 92 | T22: 81 | U22: 93 | V22: 58 | W22: 78 | X22: 81 | Y22: 59 | Z22: 42 | AA22: 83 | AB22: 78 | AC22: 37 | AD22: 22 | AE22: 73 | AF22: 63
B23: 판매량 : 2 | C23: 11 | D23: 99 | E23: 61 | F23: 63 | G23: 95 | H23: 77 | I23: 87 | J23: 97 | K23: 15 | L23: 59 | M23: 81 | N23: 39 | O23: 67 | P23: 7 | Q23: 36 | R23: 77 | S23: 1 | T23: 32 | U23: 79 | V23: 41 | W23: 80 | X23: 79 | Y23: 64 | Z23: 36 | AA23: 64 | AB23: 12 | AC23: 5 | AD23: 65 | AE23: 14 | AF23: 53
B24: 판매량 : 3 | C24: 61 | D24: 41 | E24: 19 | F24: 58 | G24: 88 | H24: 97 | I24: 52 | J24: 68 | K24: 10 | L24: 88 | M24: 100 | N24: 17 | O24: 53 | P24: 51 | Q24: 91 | R24: 91 | S24: 4 | T24: 96 | U24: 100 | V24: 26 | W24: 21 | X24: 64 | Y24: 7 | Z24: 14 | AA24: 69 | AB24: 85 | AC24: 17 | AD24: 20 | AE24: 10 | AF24: 48
B25: 판매량 : 4 | C25: 60 | D25: 56 | E25: 74 | F25: 52 | G25: 56 | H25: 93 | I25: 17 | J25: 11 | K25: 50 | L25: 35 | M25: 99 | N25: 54 | O25: 76 | P25: 63 | Q25: 74 | R25: 57 | S25: 40 | T25: 60 | U25: 47 | V25: 3 | W25: 73 | X25: 87 | Y25: 4 | Z25: 74 | AA25: 27 | AB25: 37 | AC25: 64 | AD25: 99 | AE25: 85 | AF25: 65
B26: 판매량 : 5 | C26: 5 | D26: 46 | E26: 90 | F26: 74 | G26: 26 | H26: 16 | I26: 24 | J26: 3 | K26: 85 | L26: 16 | M26: 32 | N26: 60 | O26: 14 | P26: 97 | Q26: 46 | R26: 54 | S26: 36 | T26: 59 | U26: 73 | V26: 84 | W26: 56 | X26: 93 | Y26: 88 | Z26: 12 | AA26: 45 | AB26: 49 | AC26: 53 | AD26: 22 | AE26: 99 | AF26: 23
B27: 판매량 : 6 | C27: 94 | D27: 33 | E27: 87 | F27: 38 | G27: 35 | H27: 94 | I27: 81 | J27: 77 | K27: 41 | L27: 81 | M27: 16 | N27: 35 | O27: 15 | P27: 26 | Q27: 71 | R27: 86 | S27: 19 | T27: 27 | U27: 38 | V27: 1 | W27: 66 | X27: 4 | Y27: 96 | Z27: 100 | AA27: 40 | AB27: 79 | AC27: 16 | AD27: 71 | AE27: 49 | AF27: 87

Sheet 202203
A1: ="Haja's 매 출 일 보" & "("&B4 & "월)" -> Haja's 매 출 일 보(3월)
A3: 연도 | B3: 2022 | C3: 화 | D3: 수 | E3: 목 | F3: 금 | G3: 토 | H3: 일 | I3: 월 | J3: 화 | K3: 수 | L3: 목 | M3: 금 | N3: 토 | O3: 일 | P3: 월 | Q3: 화 | R3: 수 | S3: 목 | T3: 금 | U3: 토 | V3: 일 | W3: 월 | X3: 화 | Y3: 수 | Z3: 목 | AA3: 금 | AB3: 토 | AC3: 일 | AD3: 월 | AE3: 화 | AF3: 수 | AG3: 목
A4: 월 | B4: 3 | C4: 2022-03-01 | D4: 2022-03-02 | E4: 2022-03-03 | F4: 2022-03-04 | G4: 2022-03-05 | H4: 2022-03-06 | I4: 2022-03-07 | J4: 2022-03-08 | K4: 2022-03-09 | L4: 2022-03-10 | M4: 2022-03-11 | N4: 2022-03-12 | O4: 2022-03-13 | P4: 2022-03-14 | Q4: 2022-03-15 | R4: 2022-03-16 | S4: 2022-03-17 | T4: 2022-03-18 | U4: 2022-03-19 | V4: 2022-03-20 | W4: 2022-03-21 | X4: 2022-03-22 | Y4: 2022-03-23 | Z4: 2022-03-24 | AA4: 2022-03-25 | AB4: 2022-03-26 | AC4: 2022-03-27 | AD4: 2022-03-28 | AE4: 2022-03-29 | AF4: 2022-03-30 | AG4: 2022-03-31
A5: 합계 | C5: =SUM(C6:C27) -> 1069 | D5: =SUM(D6:D27) -> 1039 | E5: 1065 | F5: 990 | G5: 1132 | H5: 1224 | I5: 1180 | J5: 880 | K5: 917 | L5: 1502 | M5: 1134 | N5: 1133 | O5: 1247 | P5: 1023 | Q5: 1068 | R5: 1062 | S5: 1084 | T5: 1057 | U5: 1119 | V5: 1043 | W5: 1140 | X5: 1049 | Y5: 1134 | Z5: 906 | AA5: 1102 | AB5: 1321 | AC5: 1229 | AD5: 989 | AE5: 1147 | AF5: 1046 | AG5: 1097
A6: A팀 | B6: 판매량 : 1 | C6: 50 | D6: 40 | E6: 10 | F6: 46 | G6: 95 | H6: 97 | I6: 49 | J6: 63 | K6: 45 | L6: 60 | M6: 60 | N6: 33 | O6: 88 | P6: 78 | Q6: 95 | R6: 53 | S6: 32 | T6: 43 | U6: 57 | V6: 74 | W6: 12 | X6: 90 | Y6: 1 | Z6: 39 | AA6: 74 | AB6: 55 | AC6: 99 | AD6: 64 | AE6: 73 | AF6: 22 | AG6: 36
B7: 판매량 : 2 | C7: 92 | D7: 26 | E7: 61 | F7: 22 | G7: 98 | H7: 7 | I7: 39 | J7: 10 | K7: 18 | L7: 40 | M7: 46 | N7: 20 | O7: 27 | P7: 30 | Q7: 82 | R7: 13 | S7: 97 | T7: 77 | U7: 18 | V7: 58 | W7: 28 | X7: 9 | Y7: 67 | Z7: 98 | AA7: 23 | AB7: 93 | AC7: 36 | AD7: 91 | AE7: 67 | AF7: 36 | AG7: 39
B8: 판매량 : 3 | C8: 3 | D8: 70 | E8: 38 | F8: 18 | G8: 97 | H8: 29 | I8: 19 | J8: 14 | K8: 76 | L8: 61 | M8: 29 | N8: 88 | O8: 18 | P8: 19 | Q8: 56 | R8: 60 | S8: 51 | T8: 51 | U8: 92 | V8: 38 | W8: 76 | X8: 69 | Y8: 28 | Z8: 51 | AA8: 23 | AB8: 84 | AC8: 99 | AD8: 46 | AE8: 16 | AF8: 24 | AG8: 12
B9: 판매량 : 4 | C9: 19 | D9: 95 | E9: 81 | F9: 8 | G9: 20 | H9: 9 | I9: 38 | J9: 49 | K9: 20 | L9: 85 | M9: 71 | N9: 18 | O9: 71 | P9: 23 | Q9: 45 | R9: 91 | S9: 83 | T9: 90 | U9: 90 | V9: 20 | W9: 51 | X9: 88 | Y9: 82 | Z9: 97 | AA9: 66 | AB9: 50 | AC9: 62 | AD9: 82 | AE9: 35 | AF9: 34 | AG9: 84
B10: 판매량 : 5 | C10: 4 | D10: 35 | E10: 20 | F10: 58 | G10: 30 | H10: 40 | I10: 51 | J10: 1 | K10: 17 | L10: 80 | M10: 17 | N10: 24 | O10: 32 | P10: 90 | Q10: 24 | R10: 20 | S10: 52 | T10: 41 | U10: 74 | V10: 2 | W10: 16 | X10: 26 | Y10: 80 | Z10: 11 | AA10: 6 | AB10: 4 | AC10: 5 | AD10: 72 | AE10: 79 | AF10: 43 | AG10: 31
B11: 판매량 : 6 | C11: 75 | D11: 19 | E11: 90 | F11: 75 | G11: 95 | H11: 45 | I11: 64 | J11: 1 | K11: 87 | L11: 80 | M11: 90 | N11: 36 | O11: 93 | P11: 62 | Q11: 48 | R11: 34 | S11: 80 | T11: 33 | U11: 61 | V11: 20 | W11: 77 | X11: 86 | Y11: 81 | Z11: 17 | AA11: 38 | AB11: 73 | AC11: 33 | AD11: 77 | AE11: 49 | AF11: 8 | AG11: 69
B12: 판매량 : 7 | C12: 74 | D12: 62 | E12: 53 | F12: 47 | G12: 88 | H12: 87 | I12: 70 | J12: 10 | K12: 28 | L12: 87 | M12: 56 | N12: 81 | O12: 68 | P12: 21 | Q12: 70 | R12: 10 | S12: 28 | T12: 25 | U12: 34 | V12: 41 | W12: 4 | X12: 20 | Y12: 96 | Z12: 17 | AA12: 46 | AB12: 27 | AC12: 83 | AD12: 37 | AE12: 57 | AF12: 91 | AG12: 69
B13: 판매량 : 8 | C13: 26 | D13: 38 | E13: 30 | F13: 3 | G13: 38 | H13: 76 | I13: 53 | J13: 59 | K13: 6 | L13: 72 | M13: 27 | N13: 29 | O13: 20 | P13: 76 | Q13: 7 | R13: 76 | S13: 55 | T13: 57 | U13: 18 | V13: 2 | W13: 29 | X13: 54 | Y13: 15 | Z13: 10 | AA13: 68 | AB13: 84 | AC13: 94 | AD13: 12 | AE13: 88 | AF13: 88 | AG13: 3
B14: 판매량 : 9 | C14: 78 | D14: 18 | E14: 42 | F14: 92 | G14: 10 | H14: 100 | I14: 89 | J14: 59 | K14: 45 | L14: 76 | M14: 57 | N14: 61 | O14: 29 | P14: 49 | Q14: 15 | R14: 72 | S14: 88 | T14: 64 | U14: 53 | V14: 67 | W14: 79 | X14: 11 | Y14: 82 | Z14: 51 | AA14: 32 | AB14: 12 | AC14: 26 | AD14: 24 | AE14: 61 | AF14: 38 | AG14: 28
B15: 판매량 : 10 | C15: 92 | D15: 20 | E15: 16 | F15: 8 | G15: 66 | H15: 48 | I15: 17 | J15: 37 | K15: 48 | L15: 96 | M15: 61 | N15: 73 | O15: 53 | P15: 3 | Q15: 28 | R15: 67 | S15: 33 | T15: 7 | U15: 98 | V15: 14 | W15: 89 | X15: 3 | Y15: 59 | Z15: 88 | AA15: 60 | AB15: 38 | AC15: 72 | AD15: 17 | AE15: 31 | AF15: 35 | AG15: 73
B16: 판매량 : 11 | C16: 44 | D16: 47 | E16: 32 | F16: 24 | G16: 12 | H16: 18 | I16: 54 | J16: 62 | K16: 30 | L16: 39 | M16: 62 | N16: 57 | O16: 34 | P16: 23 | Q16: 53 | R16: 53 | S16: 12 | T16: 25 | U16: 42 | V16: 77 | W16: 50 | X16: 68 | Y16: 2 | Z16: 72 | AA16: 29 | AB16: 69 | AC16: 39 | AD16: 31 | AE16: 55 | AF16: 86 | AG16: 1
A17: B팀 | B17: 판매량 : 1 | C17: 93 | D17: 73 | E17: 40 | F17: 33 | G17: 5 | H17: 16 | I17: 3 | J17: 18 | K17: 90 | L17: 64 | M17: 71 | N17: 78 | O17: 67 | P17: 95 | Q17: 6 | R17: 39 | S17: 23 | T17: 32 | U17: 56 | V17: 20 | W17: 45 | X17: 34 | Y17: 16 | Z17: 47 | AA17: 31 | AB17: 42 | AC17: 75 | AD17: 74 | AE17: 86 | AF17: 31 | AG17: 100
B18: 판매량 : 2 | C18: 37 | D18: 20 | E18: 69 | F18: 6 | G18: 71 | H18: 34 | I18: 49 | J18: 15 | K18: 52 | L18: 38 | M18: 42 | N18: 78 | O18: 87 | P18: 46 | Q18: 90 | R18: 100 | S18: 40 | T18: 86 | U18: 81 | V18: 82 | W18: 72 | X18: 12 | Y18: 84 | Z18: 8 | AA18: 55 | AB18: 76 | AC18: 53 | AD18: 26 | AE18: 72 | AF18: 14 | AG18: 4
B19: 판매량 : 3 | C19: 65 | D19: 44 | E19: 75 | F19: 8 | G19: 14 | H19: 33 | I19: 85 | J19: 40 | K19: 55 | L19: 58 | M19: 10 | N19: 86 | O19: 70 | P19: 62 | Q19: 71 | R19: 57 | S19: 9 | T19: 31 | U19: 63 | V19: 50 | W19: 63 | X19: 1 | Y19: 4 | Z19: 24 | AA19: 69 | AB19: 90 | AC19: 79 | AD19: 42 | AE19: 98 | AF19: 96 | AG19: 18
B20: 판매량 : 4 | C20: 34 | D20: 84 | E20: 37 | F20: 74 | G20: 1 | H20: 86 | I20: 94 | J20: 58 | K20: 44 | L20: 84 | M20: 28 | N20: 88 | O20: 14 | P20: 37 | Q20: 75 | R20: 24 | S20: 82 | T20: 51 | U20: 53 | V20: 60 | W20: 2 | X20: 82 | Y20: 63 | Z20: 59 | AA20: 52 | AB20: 78 | AC20: 96 | AD20: 50 | AE20: 42 | AF20: 98 | AG20: 56
B21: 판매량 : 5 | C21: 85 | D21: 42 | E21: 84 | F21: 57 | G21: 91 | H21: 21 | I21: 60 | J21: 6 | K21: 56 | L21: 54 | M21: 86 | N21: 12 | O21: 96 | P21: 42 | Q21: 90 | R21: 19 | S21: 40 | T21: 47 | U21: 50 | V21: 88 | W21: 95 | X21: 100 | Y21: 86 | Z21: 33 | AA21: 92 | AB21: 98 | AC21: 34 | AD21: 26 | AE21: 26 | AF21: 17 | AG21: 84
A22: C팀 | B22: 판매량 : 1 | C22: 4 | D22: 47 | E22: 26 | F22: 95 | G22: 63 | H22: 96 | I22: 97 | J22: 79 | K22: 71 | L22: 86 | M22: 50 | N22: 9 | O22: 56 | P22: 38 | Q22: 14 | R22: 75 | S22: 35 | T22: 6 | U22: 3 | V22: 76 | W22: 18 | X22: 33 | Y22: 39 | Z22: 14 | AA22: 7 | AB22: 62 | AC22: 19 | AD22: 88 | AE22: 3 | AF22: 29 | AG22: 76
B23: 판매량 : 2 | C23: 6 | D23: 77 | E23: 89 | F23: 49 | G23: 62 | H23: 66 | I23: 3 | J23: 5 | K23: 2 | L23: 89 | M23: 83 | N23: 85 | O23: 95 | P23: 61 | Q23: 41 | R23: 68 | S23: 48 | T23: 40 | U23: 18 | V23: 64 | W23: 98 | X23: 83 | Y23: 73 | Z23: 36 | AA23: 80 | AB23: 33 | AC23: 59 | AD23: 30 | AE23: 20 | AF23: 13 | AG23: 97
B24: 판매량 : 3 | C24: 6 | D24: 76 | E24: 34 | F24: 57 | G24: 40 | H24: 94 | I24: 55 | J24: 70 | K24: 20 | L24: 72 | M24: 10 | N24: 38 | O24: 30 | P24: 33 | Q24: 63 | R24: 95 | S24: 23 | T24: 99 | U24: 4 | V24: 87 | W24: 21 | X24: 27 | Y24: 47 | Z24: 48 | AA24: 94 | AB24: 81 | AC24: 74 | AD24: 14 | AE24: 9 | AF24: 89 | AG24: 36
B25: 판매량 : 4 | C25: 81 | D25: 3 | E25: 34 | F25: 97 | G25: 57 | H25: 90 | I25: 86 | J25: 60 | K25: 8 | L25: 68 | M25: 8 | N25: 54 | O25: 32 | P25: 87 | Q25: 58 | R25: 15 | S25: 39 | T25: 70 | U25: 6 | V25: 52 | W25: 93 | X25: 91 | Y25: 61 | Z25: 9 | AA25: 92 | AB25: 30 | AC25: 39 | AD25: 11 | AE25: 63 | AF25: 19 | AG25: 38
B26: 판매량 : 5 | C26: 51 | D26: 96 | E26: 30 | F26: 23 | G26: 60 | H26: 76 | I26: 50 | J26: 69 | K26: 41 | L26: 38 | M26: 87 | N26: 43 | O26: 80 | P26: 41 | Q26: 10 | R26: 1 | S26: 75 | T26: 72 | U26: 88 | V26: 14 | W26: 89 | X26: 18 | Y26: 28 | Z26: 74 | AA26: 42 | AB26: 62 | AC26: 9 | AD26: 61 | AE26: 100 | AF26: 51 | AG26: 79
B27: 판매량 : 6 | C27: 50 | D27: 7 | E27: 74 | F27: 90 | G27: 19 | H27: 56 | I27: 55 | J27: 95 | K27: 58 | L27: 75 | M27: 83 | N27: 42 | O27: 87 | P27: 7 | Q27: 27 | R27: 20 | S27: 59 | T27: 10 | U27: 60 | V27: 37 | W27: 33 | X27: 44 | Y27: 40 | Z27: 3 | AA27: 23 | AB27: 80 | AC27: 44 | AD27: 14 | AE27: 17 | AF27: 84 | AG27: 64

Sheet 202202
A1: ="Haja's 매 출 일 보" & "("&B4 & "월)" -> Haja's 매 출 일 보(2월)
A3: 연도 | B3: 2022 | C3: 화 | D3: 수 | E3: 목 | F3: 금 | G3: 토 | H3: 일 | I3: 월 | J3: 화 | K3: 수 | L3: 목 | M3: 금 | N3: 토 | O3: 일 | P3: 월 | Q3: 화 | R3: 수 | S3: 목 | T3: 금 | U3: 토 | V3: 일 | W3: 월 | X3: 화 | Y3: 수 | Z3: 목 | AA3: 금 | AB3: 토 | AC3: 일 | AD3: 월
A4: 월 | B4: 2 | C4: 2022-02-01 | D4: 2022-02-02 | E4: 2022-02-03 | F4: 2022-02-04 | G4: 2022-02-05 | H4: 2022-02-06 | I4: 2022-02-07 | J4: 2022-02-08 | K4: 2022-02-09 | L4: 2022-02-10 | M4: 2022-02-11 | N4: 2022-02-12 | O4: 2022-02-13 | P4: 2022-02-14 | Q4: 2022-02-15 | R4: 2022-02-16 | S4: 2022-02-17 | T4: 2022-02-18 | U4: 2022-02-19 | V4: 2022-02-20 | W4: 2022-02-21 | X4: 2022-02-22 | Y4: 2022-02-23 | Z4: 2022-02-24 | AA4: 2022-02-25 | AB4: 2022-02-26 | AC4: 2022-02-27 | AD4: 2022-02-28
A5: 합계 | C5: =SUM(C6:C27) -> 879 | D5: =SUM(D6:D27) -> 1088 | E5: 1318 | F5: 1116 | G5: 855 | H5: 1050 | I5: 1177 | J5: 960 | K5: 1182 | L5: 893 | M5: 1162 | N5: 841 | O5: 993 | P5: 1173 | Q5: 1080 | R5: 1101 | S5: 1151 | T5: 1277 | U5: 989 | V5: 1397 | W5: 1295 | X5: 1075 | Y5: 1100 | Z5: 1183 | AA5: 1136 | AB5: 1127 | AC5: 1074 | AD5: 1196
A6: A팀 | B6: 판매량 : 1 | C6: 95 | D6: 94 | E6: 39 | F6: 1 | G6: 68 | H6: 31 | I6: 18 | J6: 33 | K6: 24 | L6: 6 | M6: 47 | N6: 40 | O6: 88 | P6: 52 | Q6: 19 | R6: 53 | S6: 36 | T6: 99 | U6: 46 | V6: 72 | W6: 68 | X6: 68 | Y6: 45 | Z6: 95 | AA6: 58 | AB6: 3 | AC6: 62 | AD6: 54
B7: 판매량 : 2 | C7: 52 | D7: 53 | E7: 69 | F7: 29 | G7: 16 | H7: 49 | I7: 26 | J7: 89 | K7: 73 | L7: 42 | M7: 53 | N7: 30 | O7: 30 | P7: 29 | Q7: 16 | R7: 20 | S7: 13 | T7: 91 | U7: 67 | V7: 84 | W7: 54 | X7: 50 | Y7: 30 | Z7: 10 | AA7: 88 | AB7: 74 | AC7: 42 | AD7: 83
B8: 판매량 : 3 | C8: 45 | D8: 19 | E8: 59 | F8: 47 | G8: 25 | H8: 32 | I8: 93 | J8: 14 | K8: 98 | L8: 41 | M8: 63 | N8: 19 | O8: 85 | P8: 28 | Q8: 17 | R8: 60 | S8: 38 | T8: 85 | U8: 55 | V8: 86 | W8: 89 | X8: 43 | Y8: 95 | Z8: 74 | AA8: 46 | AB8: 77 | AC8: 80 | AD8: 88
B9: 판매량 : 4 | C9: 26 | D9: 18 | E9: 88 | F9: 42 | G9: 21 | H9: 88 | I9: 89 | J9: 89 | K9: 77 | L9: 10 | M9: 32 | N9: 57 | O9: 30 | P9: 95 | Q9: 1 | R9: 86 | S9: 98 | T9: 70 | U9: 68 | V9: 2 | W9: 37 | X9: 31 | Y9: 15 | Z9: 77 | AA9: 95 | AB9: 22 | AC9: 23 | AD9: 92
B10: 판매량 : 5 | C10: 66 | D10: 33 | E10: 54 | F10: 39 | G10: 23 | H10: 1 | I10: 11 | J10: 27 | K10: 88 | L10: 15 | M10: 33 | N10: 69 | O10: 40 | P10: 31 | Q10: 25 | R10: 15 | S10: 55 | T10: 11 | U10: 30 | V10: 1 | W10: 68 | X10: 69 | Y10: 33 | Z10: 71 | AA10: 44 | AB10: 44 | AC10: 42 | AD10: 75
B11: 판매량 : 6 | C11: 89 | D11: 67 | E11: 84 | F11: 35 | G11: 41 | H11: 23 | I11: 63 | J11: 6 | K11: 29 | L11: 74 | M11: 37 | N11: 51 | O11: 59 | P11: 11 | Q11: 53 | R11: 26 | S11: 69 | T11: 99 | U11: 60 | V11: 82 | W11: 2 | X11: 64 | Y11: 43 | Z11: 26 | AA11: 81 | AB11: 86 | AC11: 17 | AD11: 44
B12: 판매량 : 7 | C12: 40 | D12: 60 | E12: 8 | F12: 23 | G12: 61 | H12: 37 | I12: 59 | J12: 54 | K12: 68 | L12: 88 | M12: 7 | N12: 35 | O12: 32 | P12: 100 | Q12: 90 | R12: 11 | S12: 15 | T12: 64 | U12: 4 | V12: 76 | W12: 33 | X12: 28 | Y12: 84 | Z12: 76 | AA12: 85 | AB12: 81 | AC12: 28 | AD12: 64
B13: 판매량 : 8 | C13: 28 | D13: 63 | E13: 33 | F13: 38 | G13: 49 | H13: 31 | I13: 30 | J13: 29 | K13: 9 | L13: 43 | M13: 80 | N13: 26 | O13: 31 | P13: 13 | Q13: 85 | R13: 68 | S13: 66 | T13: 80 | U13: 17 | V13: 73 | W13: 64 | X13: 80 | Y13: 26 | Z13: 12 | AA13: 13 | AB13: 47 | AC13: 4 | AD13: 18
B14: 판매량 : 9 | C14: 49 | D14: 78 | E14: 49 | F14: 79 | G14: 23 | H14: 26 | I14: 66 | J14: 48 | K14: 72 | L14: 19 | M14: 82 | N14: 18 | O14: 12 | P14: 56 | Q14: 82 | R14: 34 | S14: 71 | T14: 15 | U14: 7 | V14: 82 | W14: 22 | X14: 12 | Y14: 65 | Z14: 29 | AA14: 98 | AB14: 93 | AC14: 61 | AD14: 26
B15: 판매량 : 10 | C15: 66 | D15: 27 | E15: 6 | F15: 98 | G15: 51 | H15: 54 | I15: 33 | J15: 58 | K15: 31 | L15: 99 | M15: 37 | N15: 34 | O15: 78 | P15: 96 | Q15: 49 | R15: 82 | S15: 93 | T15: 48 | U15: 26 | V15: 82 | W15: 26 | X15: 87 | Y15: 37 | Z15: 76 | AA15: 32 | AB15: 13 | AC15: 56 | AD15: 17
B16: 판매량 : 11 | C16: 4 | D16: 90 | E16: 89 | F16: 94 | G16: 6 | H16: 61 | I16: 14 | J16: 2 | K16: 14 | L16: 58 | M16: 57 | N16: 14 | O16: 31 | P16: 12 | Q16: 5 | R16: 33 | S16: 76 | T16: 60 | U16: 56 | V16: 93 | W16: 85 | X16: 30 | Y16: 11 | Z16: 60 | AA16: 10 | AB16: 2 | AC16: 37 | AD16: 11
A17: B팀 | B17: 판매량 : 1 | C17: 20 | D17: 91 | E17: 72 | F17: 17 | G17: 48 | H17: 96 | I17: 72 | J17: 40 | K17: 81 | L17: 65 | M17: 41 | N17: 35 | O17: 32 | P17: 86 | Q17: 24 | R17: 28 | S17: 35 | T17: 32 | U17: 72 | V17: 91 | W17: 29 | X17: 7 | Y17: 65 | Z17: 40 | AA17: 4 | AB17: 44 | AC17: 25 | AD17: 58
B18: 판매량 : 2 | C18: 26 | D18: 19 | E18: 39 | F18: 39 | G18: 5 | H18: 43 | I18: 82 | J18: 59 | K18: 28 | L18: 8 | M18: 17 | N18: 13 | O18: 65 | P18: 30 | Q18: 86 | R18: 51 | S18: 3 | T18: 91 | U18: 57 | V18: 55 | W18: 36 | X18: 70 | Y18: 13 | Z18: 92 | AA18: 1 | AB18: 21 | AC18: 60 | AD18: 39
B19: 판매량 : 3 | C19: 61 | D19: 27 | E19: 94 | F19: 85 | G19: 27 | H19: 39 | I19: 99 | J19: 26 | K19: 1 | L19: 47 | M19: 100 | N19: 51 | O19: 42 | P19: 72 | Q19: 14 | R19: 89 | S19: 27 | T19: 1 | U19: 22 | V19: 32 | W19: 100 | X19: 90 | Y19: 87 | Z19: 76 | AA19: 20 | AB19: 16 | AC19: 93 | AD19: 70
B20: 판매량 : 4 | C20: 26 | D20: 17 | E20: 88 | F20: 10 | G20: 92 | H20: 6 | I20: 15 | J20: 46 | K20: 21 | L20: 4 | M20: 42 | N20: 29 | O20: 9 | P20: 68 | Q20: 71 | R20: 40 | S20: 92 | T20: 95 | U20: 20 | V20: 58 | W20: 90 | X20: 54 | Y20: 84 | Z20: 39 | AA20: 56 | AB20: 99 | AC20: 3 | AD20: 44
B21: 판매량 : 5 | C21: 23 | D21: 26 | E21: 42 | F21: 77 | G21: 42 | H21: 81 | I21: 66 | J21: 14 | K21: 53 | L21: 70 | M21: 14 | N21: 59 | O21: 60 | P21: 63 | Q21: 79 | R21: 38 | S21: 48 | T21: 41 | U21: 79 | V21: 97 | W21: 63 | X21: 49 | Y21: 35 | Z21: 17 | AA21: 76 | AB21: 65 | AC21: 42 | AD21: 94
A22: C팀 | B22: 판매량 : 1 | C22: 28 | D22: 15 | E22: 67 | F22: 20 | G22: 31 | H22: 19 | I22: 91 | J22: 12 | K22: 83 | L22: 59 | M22: 89 | N22: 68 | O22: 88 | P22: 79 | Q22: 17 | R22: 79 | S22: 58 | T22: 99 | U22: 31 | V22: 72 | W22: 98 | X22: 37 | Y22: 55 | Z22: 48 | AA22: 72 | AB22: 9 | AC22: 62 | AD22: 70
B23: 판매량 : 2 | C23: 51 | D23: 66 | E23: 94 | F23: 84 | G23: 57 | H23: 98 | I23: 22 | J23: 46 | K23: 78 | L23: 24 | M23: 57 | N23: 18 | O23: 93 | P23: 17 | Q23: 67 | R23: 67 | S23: 68 | T23: 67 | U23: 13 | V23: 71 | W23: 74 | X23: 6 | Y23: 95 | Z23: 71 | AA23: 62 | AB23: 80 | AC23: 74 | AD23: 97
B24: 판매량 : 3 | C24: 5 | D24: 61 | E24: 87 | F24: 8 | G24: 79 | H24: 81 | I24: 94 | J24: 79 | K24: 87 | L24: 21 | M24: 54 | N24: 67 | O24: 25 | P24: 33 | Q24: 75 | R24: 86 | S24: 78 | T24: 30 | U24: 63 | V24: 85 | W24: 29 | X24: 53 | Y24: 24 | Z24: 67 | AA24: 40 | AB24: 68 | AC24: 88 | AD24: 31
B25: 판매량 : 4 | C25: 4 | D25: 66 | E25: 88 | F25: 61 | G25: 20 | H25: 67 | I25: 87 | J25: 93 | K25: 65 | L25: 21 | M25: 75 | N25: 71 | O25: 26 | P25: 98 | Q25: 72 | R25: 93 | S25: 89 | T25: 34 | U25: 13 | V25: 11 | W25: 82 | X25: 22 | Y25: 48 | Z25: 30 | AA25: 51 | AB25: 66 | AC25: 20 | AD25: 12
B26: 판매량 : 5 | C26: 63 | D26: 40 | E26: 52 | F26: 93 | G26: 13 | H26: 73 | I26: 40 | J26: 27 | K26: 53 | L26: 51 | M26: 70 | N26: 35 | O26: 9 | P26: 60 | Q26: 68 | R26: 39 | S26: 4 | T26: 14 | U26: 97 | V26: 63 | W26: 96 | X26: 94 | Y26: 88 | Z26: 35 | AA26: 96 | AB26: 82 | AC26: 92 | AD26: 31
B27: 판매량 : 6 | C27: 12 | D27: 58 | E27: 17 | F27: 97 | G27: 57 | H27: 14 | I27: 7 | J27: 69 | K27: 49 | L27: 28 | M27: 75 | N27: 2 | O27: 28 | P27: 44 | Q27: 65 | R27: 3 | S27: 19 | T27: 51 | U27: 86 | V27: 29 | W27: 50 | X27: 31 | Y27: 22 | Z27: 62 | AA27: 8 | AB27: 35 | AC27: 63 | AD27: 78

Sheet 202201
A1: ="Haja's 매 출 일 보" & "("&B4 & "월)" -> Haja's 매 출 일 보(1월)
A3: 연도 | B3: 2022 | C3: 토 | D3: 일 | E3: 월 | F3: 화 | G3: 수 | H3: 목 | I3: 금 | J3: 토 | K3: 일 | L3: 월 | M3: 화 | N3: 수 | O3: 목 | P3: 금 | Q3: 토 | R3: 일 | S3: 월 | T3: 화 | U3: 수 | V3: 목 | W3: 금 | X3: 토 | Y3: 일 | Z3: 월 | AA3: 화 | AB3: 수 | AC3: 목 | AD3: 금 | AE3: 토 | AF3: 일 | AG3: 월
A4: 월 | B4: 1 | C4: 2022-01-01 | D4: 2022-01-02 | E4: 2022-01-03 | F4: 2022-01-04 | G4: 2022-01-05 | H4: 2022-01-06 | I4: 2022-01-07 | J4: 2022-01-08 | K4: 2022-01-09 | L4: 2022-01-10 | M4: 2022-01-11 | N4: 2022-01-12 | O4: 2022-01-13 | P4: 2022-01-14 | Q4: 2022-01-15 | R4: 2022-01-16 | S4: 2022-01-17 | T4: 2022-01-18 | U4: 2022-01-19 | V4: 2022-01-20 | W4: 2022-01-21 | X4: 2022-01-22 | Y4: 2022-01-23 | Z4: 2022-01-24 | AA4: 2022-01-25 | AB4: 2022-01-26 | AC4: 2022-01-27 | AD4: 2022-01-28 | AE4: 2022-01-29 | AF4: 2022-01-30 | AG4: 2022-01-31
A5: 합계 | C5: =SUM(C6:C27) -> 1242 | D5: =SUM(D6:D27) -> 1051 | E5: 1355 | F5: 1347 | G5: 1056 | H5: 1119 | I5: 999 | J5: 1262 | K5: 1012 | L5: 984 | M5: 1069 | N5: 1031 | O5: 783 | P5: 930 | Q5: 1258 | R5: 1009 | S5: 996 | T5: 1302 | U5: 1100 | V5: 1197 | W5: 1105 | X5: 1082 | Y5: 1282 | Z5: 1266 | AA5: 1112 | AB5: 1149 | AC5: 904 | AD5: 1005 | AE5: 957 | AF5: 901 | AG5: 1282
A6: A팀 | B6: 판매량 : 1 | C6: 46 | D6: 1 | E6: 50 | F6: 89 | G6: 7 | H6: 39 | I6: 13 | J6: 21 | K6: 39 | L6: 40 | M6: 72 | N6: 72 | O6: 63 | P6: 6 | Q6: 82 | R6: 69 | S6: 100 | T6: 30 | U6: 58 | V6: 99 | W6: 90 | X6: 15 | Y6: 66 | Z6: 1 | AA6: 100 | AB6: 6 | AC6: 20 | AD6: 75 | AE6: 59 | AF6: 15 | AG6: 42
B7: 판매량 : 2 | C7: 14 | D7: 100 | E7: 24 | F7: 62 | G7: 57 | H7: 44 | I7: 16 | J7: 92 | K7: 11 | L7: 17 | M7: 55 | N7: 71 | O7: 70 | P7: 68 | Q7: 75 | R7: 92 | S7: 40 | T7: 96 | U7: 50 | V7: 12 | W7: 31 | X7: 31 | Y7: 86 | Z7: 97 | AA7: 85 | AB7: 68 | AC7: 82 | AD7: 81 | AE7: 52 | AF7: 98 | AG7: 18
B8: 판매량 : 3 | C8: 86 | D8: 48 | E8: 43 | F8: 64 | G8: 49 | H8: 73 | I8: 38 | J8: 39 | K8: 18 | L8: 82 | M8: 57 | N8: 25 | O8: 17 | P8: 41 | Q8: 22 | R8: 67 | S8: 2 | T8: 55 | U8: 43 | V8: 38 | W8: 69 | X8: 82 | Y8: 92 | Z8: 68 | AA8: 11 | AB8: 19 | AC8: 87 | AD8: 19 | AE8: 89 | AF8: 54 | AG8: 79
B9: 판매량 : 4 | C9: 78 | D9: 79 | E9: 89 | F9: 6 | G9: 40 | H9: 33 | I9: 93 | J9: 76 | K9: 16 | L9: 47 | M9: 56 | N9: 15 | O9: 6 | P9: 5 | Q9: 25 | R9: 12 | S9: 41 | T9: 29 | U9: 9 | V9: 74 | W9: 6 | X9: 70 | Y9: 75 | Z9: 80 | AA9: 9 | AB9: 44 | AC9: 24 | AD9: 4 | AE9: 31 | AF9: 89 | AG9: 82
B10: 판매량 : 5 | C10: 87 | D10: 34 | E10: 81 | F10: 69 | G10: 27 | H10: 48 | I10: 58 | J10: 29 | K10: 97 | L10: 31 | M10: 27 | N10: 79 | O10: 7 | P10: 7 | Q10: 91 | R10: 90 | S10: 19 | T10: 81 | U10: 89 | V10: 16 | W10: 75 | X10: 52 | Y10: 88 | Z10: 36 | AA10: 47 | AB10: 66 | AC10: 20 | AD10: 26 | AE10: 1 | AF10: 23 | AG10: 94
B11: 판매량 : 6 | C11: 71 | D11: 16 | E11: 18 | F11: 62 | G11: 24 | H11: 79 | I11: 75 | J11: 48 | K11: 46 | L11: 2 | M11: 2 | N11: 8 | O11: 48 | P11: 85 | Q11: 53 | R11: 31 | S11: 58 | T11: 88 | U11: 64 | V11: 31 | W11: 9 | X11: 28 | Y11: 22 | Z11: 81 | AA11: 78 | AB11: 41 | AC11: 26 | AD11: 91 | AE11: 9 | AF11: 50 | AG11: 8
B12: 판매량 : 7 | C12: 3 | D12: 7 | E12: 93 | F12: 11 | G12: 98 | H12: 40 | I12: 93 | J12: 11 | K12: 21 | L12: 29 | M12: 26 | N12: 22 | O12: 44 | P12: 70 | Q12: 15 | R12: 21 | S12: 58 | T12: 43 | U12: 98 | V12: 33 | W12: 7 | X12: 8 | Y12: 2 | Z12: 25 | AA12: 70 | AB12: 67 | AC12: 90 | AD12: 71 | AE12: 64 | AF12: 83 | AG12: 55
B13: 판매량 : 8 | C13: 55 | D13: 13 | E13: 92 | F13: 90 | G13: 53 | H13: 39 | I13: 55 | J13: 50 | K13: 72 | L13: 20 | M13: 35 | N13: 40 | O13: 8 | P13: 18 | Q13: 77 | R13: 64 | S13: 25 | T13: 20 | U13: 28 | V13: 38 | W13: 80 | X13: 28 | Y13: 72 | Z13: 58 | AA13: 84 | AB13: 50 | AC13: 29 | AD13: 89 | AE13: 58 | AF13: 9 | AG13: 98
B14: 판매량 : 9 | C14: 62 | D14: 23 | E14: 85 | F14: 59 | G14: 26 | H14: 33 | I14: 1 | J14: 90 | K14: 34 | L14: 92 | M14: 20 | N14: 27 | O14: 81 | P14: 66 | Q14: 100 | R14: 75 | S14: 1 | T14: 6 | U14: 54 | V14: 95 | W14: 46 | X14: 17 | Y14: 22 | Z14: 61 | AA14: 11 | AB14: 74 | AC14: 52 | AD14: 33 | AE14: 11 | AF14: 28 | AG14: 26
B15: 판매량 : 10 | C15: 9 | D15: 47 | E15: 81 | F15: 70 | G15: 80 | H15: 66 | I15: 51 | J15: 30 | K15: 13 | L15: 23 | M15: 67 | N15: 57 | O15: 5 | P15: 75 | Q15: 27 | R15: 71 | S15: 30 | T15: 65 | U15: 16 | V15: 78 | W15: 63 | X15: 67 | Y15: 51 | Z15: 58 | AA15: 30 | AB15: 66 | AC15: 3 | AD15: 29 | AE15: 39 | AF15: 64 | AG15: 80
B16: 판매량 : 11 | C16: 74 | D16: 8 | E16: 89 | F16: 87 | G16: 90 | H16: 75 | I16: 70 | J16: 66 | K16: 83 | L16: 17 | M16: 40 | N16: 76 | O16: 41 | P16: 79 | Q16: 26 | R16: 75 | S16: 48 | T16: 80 | U16: 73 | V16: 85 | W16: 97 | X16: 31 | Y16: 86 | Z16: 79 | AA16: 38 | AB16: 49 | AC16: 18 | AD16: 80 | AE16: 19 | AF16: 30 | AG16: 69
A17: B팀 | B17: 판매량 : 1 | C17: 79 | D17: 59 | E17: 84 | F17: 59 | G17: 42 | H17: 18 | I17: 70 | J17: 69 | K17: 97 | L17: 75 | M17: 99 | N17: 21 | O17: 43 | P17: 2 | Q17: 67 | R17: 28 | S17: 90 | T17: 51 | U17: 13 | V17: 63 | W17: 40 | X17: 81 | Y17: 95 | Z17: 58 | AA17: 30 | AB17: 32 | AC17: 31 | AD17: 54 | AE17: 45 | AF17: 65 | AG17: 15
B18: 판매량 : 2 | C18: 23 | D18: 86 | E18: 59 | F18: 92 | G18: 37 | H18: 81 | I18: 77 | J18: 82 | K18: 23 | L18: 48 | M18: 54 | N18: 12 | O18: 63 | P18: 6 | Q18: 93 | R18: 44 | S18: 55 | T18: 83 | U18: 56 | V18: 48 | W18: 92 | X18: 54 | Y18: 57 | Z18: 21 | AA18: 30 | AB18: 59 | AC18: 83 | AD18: 20 | AE18: 30 | AF18: 13 | AG18: 57
B19: 판매량 : 3 | C19: 64 | D19: 83 | E19: 98 | F19: 57 | G19: 99 | H19: 16 | I19: 41 | J19: 47 | K19: 37 | L19: 22 | M19: 25 | N19: 85 | O19: 1 | P19: 48 | Q19: 46 | R19: 38 | S19: 76 | T19: 42 | U19: 46 | V19: 42 | W19: 77 | X19: 64 | Y19: 1 | Z19: 29 | AA19: 35 | AB19: 12 | AC19: 26 | AD19: 18 | AE19: 80 | AF19: 42 | AG19: 93
B20: 판매량 : 4 | C20: 63 | D20: 13 | E20: 34 | F20: 38 | G20: 38 | H20: 7 | I20: 70 | J20: 92 | K20: 73 | L20: 92 | M20: 40 | N20: 49 | O20: 45 | P20: 9 | Q20: 21 | R20: 42 | S20: 23 | T20: 99 | U20: 7 | V20: 56 | W20: 19 | X20: 9 | Y20: 40 | Z20: 78 | AA20: 53 | AB20: 26 | AC20: 32 | AD20: 34 | AE20: 8 | AF20: 6 | AG20: 69
B21: 판매량 : 5 | C21: 24 | D21: 67 | E21: 38 | F21: 35 | G21: 24 | H21: 29 | I21: 18 | J21: 45 | K21: 60 | L21: 21 | M21: 100 | N21: 42 | O21: 49 | P21: 3 | Q21: 48 | R21: 2 | S21: 11 | T21: 58 | U21: 94 | V21: 61 | W21: 80 | X21: 18 | Y21: 55 | Z21: 71 | AA21: 50 | AB21: 60 | AC21: 14 | AD21: 38 | AE21: 3 | AF21: 7 | AG21: 36
A22: C팀 | B22: 판매량 : 1 | C22: 98 | D22: 36 | E22: 25 | F22: 38 | G22: 21 | H22: 2 | I22: 21 | J22: 83 | K22: 15 | L22: 64 | M22: 60 | N22: 72 | O22: 41 | P22: 68 | Q22: 80 | R22: 14 | S22: 56 | T22: 79 | U22: 39 | V22: 54 | W22: 66 | X22: 69 | Y22: 94 | Z22: 52 | AA22: 90 | AB22: 100 | AC22: 18 | AD22: 78 | AE22: 56 | AF22: 86 | AG22: 77
B23: 판매량 : 2 | C23: 60 | D23: 72 | E23: 89 | F23: 94 | G23: 49 | H23: 95 | I23: 9 | J23: 64 | K23: 67 | L23: 73 | M23: 82 | N23: 84 | O23: 26 | P23: 81 | Q23: 11 | R23: 43 | S23: 64 | T23: 41 | U23: 17 | V23: 49 | W23: 16 | X23: 67 | Y23: 28 | Z23: 15 | AA23: 82 | AB23: 32 | AC23: 1 | AD23: 89 | AE23: 68 | AF23: 62 | AG23: 3
B24: 판매량 : 3 | C24: 4 | D24: 26 | E24: 67 | F24: 43 | G24: 68 | H24: 57 | I24: 17 | J24: 56 | K24: 94 | L24: 41 | M24: 24 | N24: 60 | O24: 52 | P24: 28 | Q24: 66 | R24: 42 | S24: 16 | T24: 76 | U24: 86 | V24: 15 | W24: 18 | X24: 99 | Y24: 47 | Z24: 99 | AA24: 31 | AB24: 93 | AC24: 97 | AD24: 19 | AE24: 51 | AF24: 3 | AG24: 70
B25: 판매량 : 4 | C25: 83 | D25: 87 | E25: 32 | F25: 55 | G25: 22 | H25: 74 | I25: 51 | J25: 25 | K25: 81 | L25: 85 | M25: 95 | N25: 29 | O25: 24 | P25: 41 | Q25: 77 | R25: 19 | S25: 54 | T25: 81 | U25: 14 | V25: 41 | W25: 31 | X25: 46 | Y25: 95 | Z25: 46 | AA25: 24 | AB25: 2 | AC25: 43 | AD25: 50 | AE25: 5 | AF25: 27 | AG25: 78
B26: 판매량 : 5 | C26: 78 | D26: 69 | E26: 37 | F26: 97 | G26: 49 | H26: 87 | I26: 15 | J26: 65 | K26: 3 | L26: 62 | M26: 13 | N26: 52 | O26: 46 | P26: 53 | Q26: 85 | R26: 22 | S26: 66 | T26: 28 | U26: 56 | V26: 84 | W26: 89 | X26: 82 | Y26: 33 | Z26: 83 | AA26: 84 | AB26: 90 | AC26: 65 | AD26: 2 | AE26: 99 | AF26: 1 | AG26: 75
B27: 판매량 : 6 | C27: 81 | D27: 77 | E27: 47 | F27: 70 | G27: 56 | H27: 84 | I27: 47 | J27: 82 | K27: 12 | L27: 1 | M27: 20 | N27: 33 | O27: 3 | P27: 71 | Q27: 71 | R27: 48 | S27: 63 | T27: 71 | U27: 90 | V27: 85 | W27: 4 | X27: 64 | Y27: 75 | Z27: 70 | AA27: 40 | AB27: 93 | AC27: 43 | AD27: 5 | AE27: 80 | AF27: 46 | AG27: 58
